bitfinex/quotes_BTCUSD_20250623
["timestamp","ask_amount","ask_price","bid_price","bid_amount"]
[1750671189148,0.4147891,101690.0,101670.0,0.16509939]
[1750671189380,0.4147891,101690.0,101680.0,0.003]
[1750671189620,0.4770891,101690.0,101680.0,0.003]
[1750671189822,0.4770891,101690.0,101660.0,0.0654]
[1750671189823,0.76494175,101690.0,101660.0,0.0654]
[1750671190060,0.28785265,101670.0,101660.0,0.16569939]
[1750671191342,0.28785265,101670.0,101660.0,0.17369939]
[1750671193785,0.28785265,101670.0,101660.0,0.17969939]
[1750671194187,0.62785265,101670.0,101660.0,0.17969939]
[1750671195909,0.34,101670.0,101660.0,0.17969939]
[1750671196109,0.34,101670.0,101660.0,0.19792522]
[1750671196342,0.34,101670.0,101660.0,0.20038413]
[1750671197947,0.34,101670.0,101660.0,0.1821583]
[1750671198540,0.34,101670.0,101660.0,0.17969939]
[1750671202083,0.33361265,101680.0,101670.0,0.0646]
[1750671202291,0.33361265,101680.0,101670.0,0.16489939]
[1750671202497,0.28785265,101680.0,101670.0,0.16489939]
[1750671203317,0.28785265,101680.0,101670.0,0.17089939]
[1750671203719,0.2425091,101690.0,101670.0,0.17089939]
[1750671203926,0.28785265,101680.0,101670.0,0.18799933]
[1750671204306,0.28785265,101680.0,101670.0,0.19199933]
[1750671204515,0.0289891,101690.0,101680.0,0.0327]
[1750671204729,0.36260175,101690.0,101680.0,0.16479939]
[1750671205688,0.70260175,101690.0,101680.0,0.16479939]
[1750671205890,0.70260175,101690.0,101680.0,0.16779939]
[1750671206292,0.70260175,101690.0,101680.0,0.17079939]
[1750671206694,0.31684175,101690.0,101680.0,0.18983518]
[1750671207099,0.65684175,101690.0,101680.0,0.18983518]
[1750671207350,0.31684175,101690.0,101680.0,0.18983518]
[1750671207729,0.3689891,101690.0,101680.0,0.18983518]
[1750671208339,0.50133265,101700.0,101690.0,0.062]
[1750671208537,0.33361265,101700.0,101690.0,0.06246348]
[1750671209061,0.33361265,101700.0,101690.0,0.08124335]
[1750671209617,0.35892204,101700.0,101690.0,0.08124335]
[1750671209816,0.35892204,101700.0,101690.0,0.06246348]
[1750671209989,0.35892204,101700.0,101690.0,0.06346348]
[1750671210352,0.69892204,101700.0,101690.0,0.06346348]
[1750671210540,0.69892204,101700.0,101690.0,0.06446348]
[1750671213646,0.36530939,101700.0,101690.0,0.16476287]
[1750671213848,0.41106939,101700.0,101690.0,0.18314274]
[1750671214042,0.69892204,101700.0,101690.0,0.18314274]
[1750671215816,0.07106939,101700.0,101690.0,0.18314274]
[1750671216365,0.41106939,101700.0,101690.0,0.18314274]
[1750671218262,0.36530939,101700.0,101690.0,0.18314274]
[1750671220339,0.65316204,101700.0,101690.0,0.10276287]
[1750671220560,0.65316204,101700.0,101690.0,0.16436287]
[1750671223847,0.31316204,101700.0,101690.0,0.16436287]
[1750671224052,0.31316204,101700.0,101690.0,0.13306287]
[1750671226662,0.31316204,101700.0,101690.0,0.16546287]
[1750671226888,0.31316204,101700.0,101690.0,0.18200916]
[1750671227092,0.02530939,101700.0,101690.0,0.18200916]
[1750671227332,0.28785265,101700.0,101690.0,0.18200916]
[1750671229656,0.45541265,101710.0,101690.0,0.18200916]
[1750671229856,0.79541265,101710.0,101700.0,0.13119939]
[1750671230061,0.62785265,101710.0,101700.0,0.13119939]
[1750671230269,0.62785265,101710.0,101700.0,0.18030612]
[1750671230467,0.65286594,101710.0,101700.0,0.18030612]
[1750671230898,0.65486594,101710.0,101700.0,0.18030612]
[1750671231097,0.36701329,101710.0,101700.0,0.18030612]
[1750671231275,0.02701329,101710.0,101700.0,0.1827642]
[1750671231879,0.02601329,101710.0,101700.0,0.1827642]
[1750671232169,0.02237329,101710.0,101700.0,0.1827642]
[1750671232393,0.28885265,101710.0,101700.0,0.1827642]
[1750671232850,0.001,101710.0,101700.0,0.1827642]
[1750671233024,0.28885265,101710.0,101700.0,0.1827642]
[1750671233170,0.28885265,101710.0,101700.0,0.16425747]
[1750671233399,0.31485329,101710.0,101700.0,0.16425747]
[1750671234969,0.02700064,101710.0,101700.0,0.16425747]
[1750671237386,0.02700064,101710.0,101700.0,0.16179939]
[1750671239348,0.02700064,101710.0,101700.0,0.16425713]
[1750671239554,0.02700064,101710.0,101700.0,0.22792109]
[1750671239745,0.02700064,101710.0,101700.0,0.22546335]
[1750671240756,0.02700064,101710.0,101700.0,0.513316]
[1750671240970,0.02700064,101710.0,101700.0,0.22546335]
[1750671241141,0.002,101710.0,101700.0,0.22546335]
[1750671242006,0.001,101710.0,101700.0,0.22546335]
[1750671242156,0.28790265,101720.0,101700.0,0.16396335]
[1750671242320,0.28790265,101720.0,101710.0,0.06475772]
[1750671242532,0.28790265,101720.0,101710.0,0.18792922]
[1750671243416,5e-05,101720.0,101710.0,0.18792922]
[1750671243639,0.28790265,101720.0,101710.0,0.19092922]
[1750671244293,0.28790265,101720.0,101710.0,0.19392922]
[1750671245630,0.3136116,101720.0,101710.0,0.19392922]
[1750671245848,0.3136116,101720.0,101710.0,0.1914715]
[1750671251619,0.3136116,101720.0,101710.0,0.16859939]
[1750671251833,0.02575895,101720.0,101710.0,0.16859939]
[1750671252051,0.02575895,101720.0,101710.0,0.17105711]
[1750671252271,0.3136116,101720.0,101710.0,0.17105711]
[1750671252517,0.3136116,101720.0,101710.0,0.16859939]
[1750671252774,0.3136116,101720.0,101710.0,0.20856573]
[1750671253182,0.3136116,101720.0,101710.0,0.16859939]
[1750671255153,0.02575895,101720.0,101710.0,0.16859939]
[1750671255391,0.3136116,101720.0,101710.0,0.17105711]
[1750671255624,0.3136116,101720.0,101710.0,0.16859939]
[1750671256078,0.02575895,101720.0,101710.0,0.17105711]
[1750671256362,0.02575895,101720.0,101710.0,0.24796861]
[1750671256561,0.02575895,101720.0,101710.0,0.24551089]
[1750671258498,5e-05,101720.0,101710.0,0.24551089]
[1750671259689,5e-05,101720.0,101710.0,0.53336354]
[1750671261626,5e-05,101720.0,101710.0,0.83006354]
[1750671262881,5e-05,101720.0,101710.0,0.54221089]
[1750671263129,5e-05,101720.0,101710.0,0.83006354]
[1750671264346,5e-05,101720.0,101710.0,0.82706354]
[1750671264567,5e-05,101720.0,101710.0,0.82406354]
[1750671264799,5e-05,101720.0,101710.0,0.83006354]
[1750671265025,5e-05,101720.0,101710.0,0.83506354]
[1750671270146,5e-05,101720.0,101710.0,0.54721089]
[1750671274205,0.28790265,101720.0,101710.0,0.47029939]
[1750671274444,0.35320265,101720.0,101710.0,0.57499939]
[1750671274650,0.28790265,101720.0,101710.0,0.57499939]
[1750671276904,0.28790265,101720.0,101710.0,0.27829939]
[1750671277774,5e-05,101720.0,101710.0,0.11129939]
[1750671277990,0.28790265,101720.0,101710.0,0.2807171]
[1750671278248,0.28790265,101720.0,101710.0,0.27825939]
[1750671279318,0.28790265,101720.0,101710.0,0.31252533]
[1750671279992,0.28790265,101720.0,101710.0,0.31248533]
[1750671284407,0.28790265,101720.0,101710.0,0.27821939]
[1750671285888,0.28790265,101720.0,101710.0,0.31151939]
[1750671286443,5e-05,101720.0,101710.0,0.34411939]
[1750671287330,0.28790265,101720.0,101710.0,0.34411939]
[1750671287846,5e-05,101720.0,101710.0,0.34411939]
[1750671288101,5e-05,101720.0,101710.0,0.38644546]
[1750671290419,0.28755524,101720.0,101710.0,0.38644546]
[1750671290800,0.28755524,101720.0,101710.0,0.34411939]
[1750671293739,5e-05,101720.0,101710.0,0.34411939]
[1750671293953,0.28755524,101720.0,101710.0,0.34411939]
[1750671294371,0.28755524,101720.0,101710.0,0.17719939]
[1750671294588,0.28755524,101720.0,101710.0,0.27805939]
[1750671295056,0.57506048,101720.0,101710.0,0.27805939]
[1750671295953,0.28755524,101720.0,101710.0,0.27805939]
[1750671297241,5e-05,101720.0,101710.0,0.27805939]
[1750671297421,0.28755524,101720.0,101710.0,0.27805939]
[1750671298513,0.28755524,101720.0,101710.0,0.43423585]
[1750671302371,0.28755524,101720.0,101710.0,0.43411585]
[1750671302589,0.28755524,101720.0,101710.0,0.26747585]
[1750671302802,0.28755524,101720.0,101710.0,0.34153939]
[1750671303727,0.57506048,101720.0,101710.0,0.17489939]
[1750671303927,0.57506048,101720.0,101710.0,0.31043939]
[1750671304145,0.57506048,101720.0,101710.0,0.14379939]
[1750671309275,0.57506048,101720.0,101710.0,0.17609939]
[1750671309488,0.28755524,101720.0,101710.0,0.21037333]
[1750671313838,0.28755524,101720.0,101710.0,0.17609939]
[1750671314095,0.28755524,101720.0,101710.0,0.17855705]
[1750671315834,5e-05,101720.0,101710.0,0.17609939]
[1750671316046,0.28755524,101720.0,101710.0,0.17855698]
[1750671316481,0.28755524,101720.0,101710.0,0.17609939]
[1750671316666,0.07815878,101720.0,101710.0,0.24702598]
[1750671316925,0.36566402,101720.0,101710.0,0.17609939]
[1750671317153,0.36566402,101720.0,101710.0,0.14379939]
[1750671318966,0.88070926,101720.0,101710.0,0.011]
[1750671319210,1.22070926,101720.0,101710.0,0.011]
[1750671319891,1.22070926,101720.0,101710.0,0.006]
[1750671320119,0.0622,101710.0,101690.0,0.00046348]
[1750671320334,0.57501048,101700.0,101690.0,0.00046348]
[1750671320568,0.57501048,101700.0,101690.0,0.10076287]
[1750671321010,0.57501048,101700.0,101690.0,0.13166287]
[1750671321234,0.28750524,101700.0,101690.0,0.16306287]
[1750671322147,0.28750524,101700.0,101690.0,0.17206287]
[1750671322379,0.28764449,101700.0,101690.0,0.17206287]
[1750671322606,0.28764449,101700.0,101690.0,0.16806287]
[1750671322821,0.28764449,101700.0,101690.0,0.17406287]
[1750671325302,0.3274078,101700.0,101690.0,0.17406287]
[1750671325586,0.08712978,101700.0,101690.0,0.17406287]
[1750671325823,0.08712978,101700.0,101690.0,0.19938329]
[1750671326283,0.3274078,101700.0,101690.0,0.19938329]
[1750671326953,0.03976331,101700.0,101690.0,0.19938329]
[1750671327180,0.3274078,101700.0,101690.0,0.17406287]
[1750671327417,0.28764449,101700.0,101690.0,0.17406287]
[1750671327644,0.34984449,101710.0,101690.0,0.17406287]
[1750671327867,0.45396449,101710.0,101700.0,0.10029939]
[1750671329133,0.49306381,101710.0,101700.0,0.10029939]
[1750671329632,0.49306381,101710.0,101700.0,0.10429939]
[1750671330116,0.03909932,101710.0,101700.0,0.15430568]
[1750671330332,0.35204449,101730.0,101710.0,0.0633]
[1750671330557,0.28764449,101720.0,101710.0,0.16359939]
[1750671331461,0.27572,101730.0,101710.0,0.16359939]
[1750671331693,0.0325,101730.0,101710.0,0.18190575]
[1750671331926,0.49896449,101730.0,101720.0,0.10029939]
[1750671332147,0.71273754,101730.0,101720.0,0.13179939]
[1750671332365,0.33268449,101730.0,101720.0,0.13179939]
[1750671332825,0.28764449,101730.0,101720.0,0.13179939]
[1750671333049,0.62764449,101730.0,101720.0,0.11861996]
[1750671335378,0.66727353,101730.0,101720.0,0.11861996]
[1750671336793,0.03962904,101730.0,101720.0,0.16429939]
[1750671337241,0.56324449,101740.0,101720.0,0.16429939]
[1750671337951,0.28764449,101730.0,101720.0,0.16429939]
[1750671338419,0.32769669,101730.0,101720.0,0.16429939]
[1750671340034,0.0400522,101730.0,101720.0,0.16429939]
[1750671340480,0.50180449,101740.0,101720.0,0.16429939]
[1750671340696,0.28764449,101730.0,101720.0,0.16429939]
[1750671340962,0.28764449,101730.0,101720.0,0.18280572]
[1750671342538,0.32696084,101730.0,101720.0,0.18280572]
[1750671344866,0.32696084,101730.0,101720.0,0.16429939]
[1750671347265,0.32696084,101730.0,101720.0,0.10029939]
[1750671350454,0.32696084,101730.0,101720.0,0.13289939]
[1750671350682,0.32696084,101730.0,101720.0,0.16399939]
[1750671351606,0.14642675,101730.0,101720.0,0.13289939]
[1750671352950,0.27836,101740.0,101720.0,0.14945933]
[1750671353198,0.27836,101740.0,101720.0,0.18085933]
[1750671353473,0.28764449,101730.0,101720.0,0.18085933]
[1750671353943,0.32795453,101730.0,101720.0,0.18085933]
[1750671354854,0.04031004,101730.0,101720.0,0.16429939]
[1750671355120,0.32795453,101730.0,101720.0,0.16429939]
[1750671355357,0.28764449,101730.0,101720.0,0.16429939]
[1750671355584,0.63169449,101750.0,101730.0,0.0613]
[1750671355817,0.84237449,101750.0,101730.0,0.16159939]
[1750671356044,0.84237449,101750.0,101730.0,0.20652378]
[1750671356279,0.28764449,101740.0,101730.0,0.20652378]
[1750671356522,0.28764449,101740.0,101730.0,0.16159939]
[1750671356752,0.32733137,101740.0,101730.0,0.16159939]
[1750671356993,0.32733137,101740.0,101730.0,0.16206287]
[1750671356994,0.03968688,101740.0,101730.0,0.16206287]
[1750671357468,0.84237449,101750.0,101730.0,0.16206287]
[1750671357748,0.67645449,101750.0,101730.0,0.13106287]
[1750671357953,0.00405,101750.0,101740.0,0.16179939]
[1750671359614,0.04371689,101750.0,101740.0,0.16179939]
[1750671359827,0.00405,101750.0,101740.0,0.16179939]
[1750671361085,0.29169449,101750.0,101740.0,0.16179939]
[1750671362049,0.33096547,101750.0,101740.0,0.16179939]
[1750671362454,0.33096547,101750.0,101740.0,0.18223732]
[1750671362869,0.33096547,101750.0,101740.0,0.16179939]
[1750671365722,0.04332098,101750.0,101740.0,0.13029939]
[1750671365925,0.33096547,101750.0,101740.0,0.13029939]
[1750671367634,0.33096547,101750.0,101740.0,0.16069939]
[1750671371710,0.33076847,101750.0,101740.0,0.16069939]
[1750671371890,0.33076847,101750.0,101740.0,0.1785358]
[1750671373544,0.33076847,101750.0,101740.0,0.16069939]
[1750671375033,0.33076847,101750.0,101740.0,0.10029939]
[1750671376571,0.33076847,101750.0,101740.0,0.13039939]
[1750671379607,0.33076847,101750.0,101740.0,0.16089939]
[1750671383941,0.04312398,101750.0,101740.0,0.16089939]
[1750671384148,0.04312398,101750.0,101740.0,0.21543438]
[1750671384585,0.003853,101750.0,101740.0,0.50307887]
[1750671386098,0.003853,101750.0,101740.0,0.21943438]
[1750671386367,0.003853,101750.0,101740.0,0.45254388]
[1750671387224,0.003853,101750.0,101740.0,0.62106388]
[1750671389300,0.003853,101750.0,101740.0,0.33341939]
[1750671396398,0.003853,101750.0,101740.0,0.62106388]
[1750671397273,0.003853,101750.0,101740.0,0.83218424]
[1750671397469,0.003853,101750.0,101740.0,0.73590412]
[1750671398250,0.003853,101750.0,101740.0,0.93248363]
[1750671399772,0.003853,101750.0,101740.0,0.9423126]
[1750671400244,0.003853,101750.0,101740.0,1.00214138]
[1750671400456,0.003853,101750.0,101740.0,1.01197006]
[1750671400657,0.003853,101750.0,101740.0,1.02179864]
[1750671400874,0.003853,101750.0,101740.0,1.01197006]
[1750671401884,0.003853,101750.0,101740.0,1.02179864]
[1750671402460,0.003853,101750.0,101740.0,1.01197006]
[1750671402665,0.003853,101750.0,101740.0,1.02179864]
[1750671402864,0.003853,101750.0,101740.0,1.03162713]
[1750671403277,0.003853,101750.0,101740.0,1.02179864]
[1750671403598,0.003853,101750.0,101740.0,1.03162713]
[1750671404015,0.003853,101750.0,101740.0,1.03162655]
[1750671404424,0.003853,101750.0,101740.0,1.02179816]
[1750671404625,0.003853,101750.0,101740.0,1.03162655]
[1750671405164,0.003853,101750.0,101740.0,1.03162606]
[1750671407070,0.003853,101750.0,101740.0,1.02179777]
[1750671407287,0.003853,101750.0,101740.0,1.00214128]
[1750671407489,0.003853,101750.0,101740.0,1.01196986]
[1750671408313,0.003853,101750.0,101740.0,1.02179825]
[1750671408565,0.003853,101750.0,101740.0,0.44793963]
[1750671408783,0.003853,101750.0,101740.0,0.18244024]
[1750671409000,0.003853,101750.0,101740.0,0.33309939]
[1750671409927,0.310864,101750.0,101740.0,0.33309939]
[1750671411357,0.310864,101750.0,101740.0,0.62074388]
[1750671411744,0.310864,101750.0,101740.0,0.33309939]
[1750671413074,0.310864,101750.0,101740.0,0.39669453]
[1750671413944,0.310864,101750.0,101740.0,0.68433902]
[1750671416496,0.310864,101750.0,101740.0,0.62074388]
[1750671417323,0.310864,101750.0,101740.0,0.33309939]
[1750671417918,0.310864,101750.0,101740.0,0.16789939]
[1750671418119,0.310864,101750.0,101740.0,0.33301939]
[1750671418334,0.310864,101750.0,101740.0,0.10729939]
[1750671418561,0.66050849,101750.0,101740.0,0.10729939]
[1750671418811,1.00050849,101750.0,101740.0,0.007]
[1750671419009,1.20994849,101750.0,101740.0,0.007]
[1750671419460,1.01033563,101750.0,101740.0,0.007]
[1750671419631,1.20994849,101750.0,101740.0,0.007]
[1750671420216,1.20994849,101750.0,101730.0,0.01520748]
[1750671420424,0.69124449,101740.0,101730.0,0.01520748]
[1750671421713,0.69124449,101740.0,101730.0,0.01720748]
[1750671422317,0.69124449,101740.0,101730.0,0.01920748]
[1750671424694,0.72020713,101740.0,101730.0,0.01720748]
[1750671425172,0.72020713,101740.0,101730.0,0.01520748]
[1750671436090,0.72020713,101740.0,101730.0,0.01272748]
[1750671436706,0.38020713,101740.0,101730.0,0.01272748]
[1750671438764,0.72020713,101740.0,101730.0,0.01272748]
[1750671445603,1.10815101,101740.0,101730.0,0.01272748]
[1750671446980,1.11797921,101740.0,101730.0,0.01272748]
[1750671447125,1.10815101,101740.0,101730.0,0.01272748]
[1750671448344,0.82050652,101740.0,101730.0,0.01272748]
[1750671448548,1.11731336,101740.0,101730.0,0.01272748]
[1750671448753,0.82966887,101740.0,101730.0,0.01272748]
[1750671448964,0.82966888,101740.0,101730.0,0.01272748]
[1750671449365,0.85312893,101740.0,101730.0,0.01272748]
[1750671451429,0.85313334,101740.0,101730.0,0.01272748]
[1750671451852,0.89811395,101740.0,101730.0,0.01272748]
[1750671452055,0.8746539,101740.0,101730.0,0.01272748]
[1750671452215,0.87465636,101740.0,101730.0,0.01272748]
[1750671455256,0.8981317,101740.0,101730.0,0.01272748]
[1750671455834,0.8981317,101740.0,101730.0,0.04362748]
[1750671457100,0.89813243,101740.0,101730.0,0.04362748]
[1750671457520,0.87465709,101740.0,101730.0,0.04362748]
[1750671457686,0.89813275,101740.0,101730.0,0.04362748]
[1750671459879,0.89813344,101740.0,101730.0,0.04362748]
[1750671460512,0.87465778,101740.0,101730.0,0.04362748]
[1750671461176,0.90421878,101740.0,101730.0,0.07532748]
[1750671461803,0.61657429,101740.0,101730.0,0.07532748]
[1750671462041,0.90421878,101740.0,101730.0,0.07532748]
[1750671464048,0.90409878,101740.0,101730.0,0.07532748]
[1750671464986,0.03873165,101740.0,101730.0,0.18315962]
[1750671465166,0.80722849,101750.0,101740.0,0.0643]
[1750671465389,0.81639984,101750.0,101740.0,0.0314]
[1750671465839,0.81639984,101750.0,101730.0,0.17732687]
[1750671466020,0.28764449,101740.0,101730.0,0.17732687]
[1750671466684,0.59465549,101740.0,101730.0,0.07702748]
[1750671466885,0.93465549,101740.0,101730.0,0.07702748]
[1750671469047,1.09925549,101740.0,101730.0,0.07702748]
[1750671469212,1.09921549,101740.0,101730.0,0.07702748]
[1750671469823,0.93465549,101740.0,101730.0,0.07702748]
[1750671470031,1.09921549,101740.0,101730.0,0.07702748]
[1750671472180,0.75921549,101740.0,101730.0,0.07702748]
[1750671476499,1.09921549,101740.0,101730.0,0.07702748]
[1750671476703,1.57904484,101740.0,101730.0,0.01272748]
[1750671476939,1.6210726,101740.0,101730.0,0.01272748]
[1750671477140,1.66046638,101740.0,101730.0,0.01272748]
[1750671477366,1.88050071,101740.0,101730.0,0.01272748]
[1750671477512,1.6839211,101740.0,101730.0,0.01272748]
[1750671477753,1.67409233,101740.0,101730.0,0.01272748]
[1750671478147,1.68392091,101740.0,101730.0,0.01272748]
[1750671478348,1.97142671,101740.0,101730.0,0.01272748]
[1750671479140,1.97142671,101740.0,101730.0,0.01272748]
[1750671479527,2.00151766,101740.0,101730.0,0.01272748]
[1750671479672,2.00150489,101740.0,101730.0,0.01272748]
[1750671479875,1.99167631,101740.0,101730.0,0.01272748]
[1750671480266,1.70407461,101740.0,101730.0,0.01272748]
[1750671480905,1.71390319,101740.0,101730.0,0.01272748]
[1750671481511,1.70407461,101740.0,101730.0,0.01272748]
[1750671482320,1.69424612,101740.0,101730.0,0.01272748]
[1750671482754,1.6707913,101740.0,101730.0,0.01272748]
[1750671484023,1.57419396,101740.0,101730.0,0.01272748]
[1750671484229,1.02172727,101740.0,101730.0,0.04582748]
[1750671484409,1.23000727,101740.0,101730.0,0.07822748]
[1750671484627,1.21169531,101740.0,101730.0,0.07822748]
[1750671485342,1.50912005,101740.0,101730.0,0.01272748]
[1750671485536,1.7243191,101740.0,101730.0,0.01272748]
[1750671485895,1.73414797,101740.0,101730.0,0.01272748]
[1750671486106,1.73414788,101740.0,101730.0,0.01272748]
[1750671486532,1.7243191,101740.0,101730.0,0.01272748]
[1750671486754,1.71516728,101740.0,101730.0,0.01272748]
[1750671486962,1.71516719,101740.0,101730.0,0.01272748]
[1750671487533,1.72499587,101740.0,101730.0,0.01272748]
[1750671488185,1.71516719,101740.0,101730.0,0.01272748]
[1750671488371,1.72499577,101740.0,101730.0,0.01272748]
[1750671488572,1.70669383,101740.0,101730.0,0.01272748]
[1750671488815,1.69686525,101740.0,101730.0,0.01272748]
[1750671489806,1.70601557,101740.0,101730.0,0.01272748]
[1750671490208,1.70314787,101740.0,101730.0,0.01272748]
[1750671490426,1.73464787,101740.0,101730.0,0.01272748]
[1750671491252,1.73464777,101740.0,101730.0,0.01272748]
[1750671491466,1.71634415,101740.0,101730.0,0.01272748]
[1750671491638,1.73464695,101740.0,101730.0,0.01272748]
[1750671491865,1.72481837,101740.0,101730.0,0.01272748]
[1750671492075,1.67501669,101740.0,101730.0,0.01272748]
[1750671492232,1.62395991,101740.0,101730.0,0.01272748]
[1750671492436,1.62395991,101740.0,101730.0,0.04462748]
[1750671493165,1.6337882,101740.0,101730.0,0.04462748]
[1750671493360,1.64361669,101740.0,101730.0,0.01272748]
[1750671493968,1.4037269,101740.0,101730.0,0.01272748]
[1750671494170,1.41355558,101740.0,101730.0,0.01272748]
[1750671494393,1.41355548,101740.0,101730.0,0.01272748]
[1750671495790,1.39389841,101740.0,101730.0,0.01272748]
[1750671496434,1.4037269,101740.0,101730.0,0.01272748]
[1750671496904,1.41355558,101740.0,101730.0,0.01272748]
[1750671497162,1.4037269,101740.0,101730.0,0.01272748]
[1750671497458,1.431862,101740.0,101730.0,0.01272748]
[1750671498628,1.42203332,101740.0,101730.0,0.01272748]
[1750671498828,1.431862,101740.0,101730.0,0.01272748]
[1750671499254,1.42203332,101740.0,101730.0,0.01272748]
[1750671499455,1.431862,101740.0,101730.0,0.01272748]
[1750671499901,1.43186632,101740.0,101730.0,0.01272748]
[1750671500644,1.42203764,101740.0,101730.0,0.01272748]
[1750671500790,1.43187143,101740.0,101730.0,0.01272748]
[1750671501009,1.42204275,101740.0,101730.0,0.01272748]
[1750671501420,1.43187133,101740.0,101730.0,0.01272748]
[1750671501873,1.42204275,101740.0,101730.0,0.01272748]
[1750671502295,1.43187143,101740.0,101730.0,0.04552748]
[1750671502533,1.06943753,101740.0,101730.0,0.07752748]
[1750671502731,0.9720818,101740.0,101730.0,0.07752748]
[1750671502942,0.99955931,101740.0,101730.0,0.07752748]
[1750671503381,1.28715585,101740.0,101730.0,0.07752748]
[1750671503623,1.26884194,101740.0,101730.0,0.07752748]
[1750671503853,1.28716914,101740.0,101730.0,0.07752748]
[1750671504714,1.31062537,101740.0,101730.0,0.07752748]
[1750671505992,1.30079727,101740.0,101730.0,0.07752748]
[1750671506419,1.28247007,101740.0,101730.0,0.07752748]
[1750671506636,1.30081774,101740.0,101730.0,0.07752748]
[1750671506884,1.0132212,101740.0,101730.0,0.07752748]
[1750671507089,0.72562466,101740.0,101730.0,0.07752748]
[1750671507319,1.0131812,101740.0,101730.0,0.07752748]
[1750671507743,0.72558466,101740.0,101730.0,0.07752748]
[1750671507954,1.0131812,101740.0,101730.0,0.07752748]
[1750671508229,0.4653412,101740.0,101730.0,0.07752748]
[1750671508466,0.4653412,101740.0,101730.0,0.08528023]
[1750671508467,0.98968497,101740.0,101730.0,0.08528023]
[1750671509500,0.98968497,101740.0,101730.0,0.07752748]
[1750671509748,0.72222902,101740.0,101730.0,0.07752748]
[1750671509971,0.93002902,101740.0,101730.0,0.07752748]
[1750671512093,0.93002496,101740.0,101730.0,0.07752748]
[1750671512706,1.23727799,101740.0,101730.0,0.01272748]
[1750671512862,1.2274496,101740.0,101730.0,0.01272748]
[1750671513059,1.23727799,101740.0,101730.0,0.01272748]
[1750671513288,1.35211823,101740.0,101730.0,0.01272748]
[1750671513505,1.38542369,101740.0,101730.0,0.01272748]
[1750671514114,1.39525247,101740.0,101730.0,0.01272748]
[1750671514344,1.39525237,101740.0,101730.0,0.01272748]
[1750671515270,1.46888124,101740.0,101730.0,0.01272748]
[1750671515448,1.44922427,101740.0,101730.0,0.01272748]
[1750671515901,1.47905067,101740.0,101730.0,0.01272748]
[1750671516043,1.48887945,101740.0,101730.0,0.01272748]
[1750671516651,1.41525067,101740.0,101730.0,0.01272748]
[1750671517058,1.44481567,101740.0,101730.0,0.01272748]
[1750671517418,1.45464454,101740.0,101730.0,0.01272748]
[1750671517834,0.91519308,101730.0,101720.0,0.0621]
[1750671518044,1.09818584,101730.0,101720.0,0.0621]
[1750671518447,1.1080151,101730.0,101720.0,0.0621]
[1750671518665,1.09818584,101730.0,101720.0,0.0621]
[1750671518867,1.09818584,101730.0,101720.0,0.06186646]
[1750671519044,1.1080151,101730.0,101720.0,0.06186646]
[1750671519485,1.08835668,101730.0,101720.0,0.06586646]
[1750671520149,1.09818575,101730.0,101720.0,0.06586646]
[1750671520773,1.09819266,101730.0,101720.0,0.06586646]
[1750671521211,1.08836359,101730.0,101720.0,0.06586646]
[1750671521431,1.09819266,101730.0,101720.0,0.06586646]
[1750671523516,1.09819244,101730.0,101720.0,0.06586646]
[1750671524220,1.08836337,101730.0,101720.0,0.06586646]
[1750671526407,1.0883627,101730.0,101720.0,0.06586646]
[1750671527074,1.1320427,101730.0,101720.0,0.06586646]
[1750671528372,1.12287308,101730.0,101720.0,0.06586646]
[1750671530341,1.12286236,101730.0,101720.0,0.06586646]
[1750671534054,1.13203209,101730.0,101720.0,0.06586646]
[1750671534301,0.55684973,101730.0,101720.0,0.06586646]
[1750671534506,1.12286236,101730.0,101720.0,0.06586646]
[1750671534729,1.13203657,101730.0,101720.0,0.06586646]
[1750671535202,1.13203677,101730.0,101720.0,0.06586646]
[1750671535905,0.79203677,101730.0,101720.0,0.06586646]
[1750671537583,0.50444559,101730.0,101720.0,0.06586646]
[1750671537816,0.84444559,101730.0,101720.0,0.06586646]
[1750671538034,0.63676559,101730.0,101720.0,0.06586646]
[1750671538249,0.84416559,101730.0,101720.0,0.06586646]
[1750671538712,1.13175677,101730.0,101720.0,0.06586646]
[1750671539344,0.55657441,101730.0,101720.0,0.06586646]
[1750671539598,1.13175677,101730.0,101720.0,0.06586646]
[1750671539839,0.84416559,101730.0,101720.0,0.06586646]
[1750671540301,1.13175677,101730.0,101720.0,0.06586646]
[1750671540550,1.65381309,101730.0,101720.0,0.004]
[1750671540763,1.66872047,101730.0,101720.0,0.004]
[1750671540973,1.29827048,101730.0,101720.0,0.004]
[1750671541199,1.31792929,101730.0,101720.0,0.004]
[1750671541646,1.52435865,101730.0,101720.0,0.004]
[1750671541844,1.85679102,101730.0,101720.0,0.004]
[1750671542260,1.84696137,101730.0,101720.0,0.004]
[1750671542722,1.84696044,101730.0,101720.0,0.004]
[1750671542944,0.34,101720.0,101700.0,0.0647]
[1750671543160,1.07902236,101710.0,101700.0,0.0647]
[1750671543604,0.50384,101710.0,101700.0,0.0647]
[1750671543804,1.07902236,101710.0,101700.0,0.0647]
[1750671545608,1.07902236,101710.0,101700.0,0.0667]
[1750671545785,1.07902236,101710.0,101700.0,0.0687]
[1750671545996,1.07902236,101710.0,101700.0,0.03462]
[1750671546854,0.50384,101710.0,101700.0,0.03462]
[1750671547064,1.07902236,101710.0,101700.0,0.03462]
[1750671547868,1.11221629,101710.0,101700.0,0.03462]
[1750671548075,0.53703393,101710.0,101700.0,0.03462]
[1750671548282,1.11221629,101710.0,101700.0,0.03462]
[1750671548937,1.11221629,101710.0,101700.0,0.06682]
[1750671552020,1.11221629,101710.0,101700.0,0.03462]
[1750671553042,1.11221629,101710.0,101700.0,0.06772]
[1750671555518,0.94837629,101710.0,101700.0,0.06772]
[1750671555715,0.86810511,101710.0,101700.0,0.06772]
[1750671556081,1.15569629,101710.0,101700.0,0.06772]
[1750671563503,1.15569629,101710.0,101700.0,0.03462]
[1750671565526,1.15569629,101710.0,101700.0,0.06722]
[1750671566464,1.15569629,101710.0,101700.0,0.03462]
[1750671567083,1.17535858,101710.0,101700.0,0.03462]
[1750671568066,1.17535848,101710.0,101700.0,0.03262]
[1750671568476,1.17535848,101710.0,101700.0,0.03062]
[1750671570158,1.18518987,101710.0,101700.0,0.03062]
[1750671570696,1.17535848,101710.0,101700.0,0.03062]
[1750671571287,1.18518987,101710.0,101700.0,0.03062]
[1750671571511,1.17535848,101710.0,101700.0,0.03062]
[1750671571924,1.20287145,101710.0,101700.0,0.03062]
[1750671572097,1.22253432,101710.0,101700.0,0.03062]
[1750671572304,1.22253422,101710.0,101700.0,0.03062]
[1750671572599,1.21270263,101710.0,101700.0,0.03062]
[1750671572841,1.20353168,101710.0,101700.0,0.03062]
[1750671573046,1.22319465,101710.0,101700.0,0.03062]
[1750671573479,1.21336307,101710.0,101700.0,0.03062]
[1750671574022,1.22253354,101710.0,101700.0,0.03062]
[1750671574231,1.21270215,101710.0,101700.0,0.03062]